bitfinex-derivatives/quotes_SOLF0:USTF0_20240816
["timestamp","ask_amount","ask_price","bid_price","bid_amount"]
[1723820925680,1.0,139.0,138.92,0.0541194]
[1723820925882,0.04557736,138.94,138.92,0.0541194]
[1723820926368,3.598,138.95,138.92,0.0541194]
[1723820926777,0.04990136,138.94,138.92,0.0541194]
[1723820927184,8.204,139.0,138.92,0.0541194]
[1723820927582,0.04990136,138.94,138.92,0.0541194]
[1723820927780,8.204,139.0,138.92,0.0541194]
[1723820928285,0.04990136,138.94,138.92,0.0541194]
[1723820928586,8.204,139.0,138.92,0.0541194]
[1723820928787,0.04990136,138.94,138.92,0.0541194]
[1723820929290,3.56115331,138.95,138.92,0.0541194]
[1723820929482,7.204,138.98,138.92,0.0541194]
[1723820929980,0.04633324,138.94,138.92,0.0541194]
[1723820930181,0.04633324,138.94,138.85,3.9921]
[1723820930182,3.63051513,138.94,138.77,3.53872315]
[1723820930380,7.204,138.92,138.8,1.342]
[1723820930591,6.28,138.91,138.8,1.342]
[1723820930791,6.28,138.91,138.81,3.6013]
[1723820931087,6.28,138.91,138.8,1.342]
[1723820931279,3.6001,138.87,138.82,3.6012]
[1723820931506,0.05044772,138.87,138.84,0.04893308]
[1723820931680,6.28,138.86,138.84,0.04893308]
[1723820932086,3.6004,138.85,138.84,0.04893308]
[1723820934589,11.1685,138.86,138.84,0.04893308]
[1723820934782,7.5682,138.86,138.84,0.04893308]
[1723820934982,3.6004,138.85,138.84,0.04893308]
[1723820935600,9.8802,138.86,138.84,0.04893308]
[1723820935789,0.05044772,138.87,138.84,0.04893308]
[1723820935987,0.05044772,138.87,138.86,3.6002]
[1723820936187,0.05044772,138.87,138.84,0.04893308]
[1723820936495,0.05044772,138.87,138.86,3.6002]
[1723820936993,2.7006,138.96,138.85,2.6007]
[1723820937184,3.5985,138.93,138.88,3.5996]
[1723820937390,2.7006,138.96,138.88,3.5996]
[1723820938288,0.04872424,138.93,138.91,0.04878187]
[1723820938890,3.64722424,138.93,138.91,0.04878187]
[1723820940092,0.04872424,138.93,138.91,0.04878187]
[1723820943095,3.5986,138.92,138.91,0.04878187]
[1723820943496,0.04872424,138.93,138.91,0.04878187]
[1723820944397,0.04872424,138.93,138.92,3.5986]
[1723820944598,2.6964,139.0,138.91,3.73326797]
[1723820944801,6.28,139.01,138.92,1.3354]
[1723820945302,6.28,139.01,138.94,3.5979]
[1723820945702,6.28,139.01,138.92,2.6201]
[1723820945904,6.28,139.01,138.96,0.0521132]
[1723820946312,7.204,139.0,138.96,0.0521132]
[1723820946505,7.204,138.98,138.96,0.0521132]
[1723820947204,3.5973,138.97,138.96,0.0521132]
[1723820947404,7.204,139.0,138.89,6.28]
[1723820947607,6.28,139.01,138.89,6.28]
[1723820947802,3.5972,138.98,138.89,6.28]
[1723820948001,6.28,139.01,138.89,6.28]
[1723820948406,3.5975,138.97,138.93,3.5982]
[1723820948612,0.05284876,138.96,138.94,0.05069516]
[1723820949004,0.05284876,138.96,138.94,3.64869516]
[1723820949500,0.05284876,138.96,138.94,0.05069516]
[1723820950299,3.65054876,138.96,138.94,0.05069516]
[1723820950495,0.05284876,138.96,138.94,0.05069516]
[1723820950914,3.5978,138.95,138.94,0.05069516]
[1723820952307,7.2052118,138.95,138.94,0.05069516]
[1723820952609,3.6074118,138.95,138.87,6.26]
[1723820952808,7.204,138.94,138.86,1.3799]
[1723820953008,10.74736639,138.94,138.86,4.9799]
[1723820953410,10.74736639,138.94,138.85,4.943]
[1723820953707,10.74736639,138.94,138.82,2.6148]
[1723820953915,10.74736639,138.94,138.82,1.3054]
[1723820954107,10.74736639,138.94,138.78,1.3174]
[1723820954108,0.04728731,138.91,138.88,0.05073044]
[1723820954308,3.6003,138.86,138.79,1.3054]
[1723820954515,7.204,138.89,138.81,3.6013]
[1723820954807,1.2908,138.88,138.81,3.6013]
[1723820955118,3.6003,138.86,138.81,3.6013]
[1723820955510,1.2908,138.88,138.82,3.6011]
[1723820955812,7.204,138.89,138.79,1.3054]
[1723820956010,0.05208588,138.85,138.83,3.6008]
[1723820956614,0.05208588,138.85,138.82,3.65532691]
[1723820957012,0.05208588,138.85,138.82,0.05422691]
[1723820957223,0.05208588,138.85,138.82,3.65532691]
[1723820958028,0.05208588,138.85,138.83,3.6008]
[1723820958216,0.05208588,138.85,138.82,0.05422691]
[1723820958518,0.05208588,138.85,138.83,3.6008]
[1723820959017,0.05208588,138.85,138.84,3.6007]
[1723820959218,8.8841,138.92,138.82,0.05422691]
[1723820959418,6.26,138.92,138.82,0.05422691]
[1723820959616,8.9429,138.96,138.83,6.26]
[1723820960317,16.1469,138.96,138.83,6.26]
[1723820960717,0.04963399,138.91,138.88,0.04880321]
[1723820960915,0.04963399,138.91,138.89,3.52243985]
[1723820961114,7.561,138.99,138.9,2.6587]
[1723820961421,7.204,138.98,138.9,2.6587]
[1723820962022,7.561,138.99,138.9,2.6587]
[1723820962216,3.5984,138.93,138.9,3.599]
[1723820962439,3.5984,138.93,138.88,6.26]
[1723820962440,0.04924306,138.95,138.88,6.26]
[1723820962620,7.204,138.98,138.9,0.05242194]
[1723820963023,0.04738088,138.93,138.9,0.05242194]
[1723820963227,3.64407702,138.92,138.9,0.05242194]
[1723820963717,1.3895,138.92,138.9,0.05242194]
[1723820963914,3.68481876,138.91,138.9,0.05242194]
[1723820964113,1.3895,138.92,138.82,2.6587]
[1723820964917,3.6001,138.87,138.83,3.6008]
[1723820965320,0.04729438,138.86,138.84,0.05007484]
[1723820965527,4.97281257,138.92,138.84,0.05007484]
[1723820965719,0.04957595,138.86,138.84,0.05007484]
[1723820965918,3.5999,138.88,138.84,3.65057484]
[1723820966127,0.05007488,138.86,138.84,3.65057484]
[1723820966323,0.05007488,138.86,138.84,0.05007484]
[1723820966629,0.05007488,138.86,138.85,3.6004]
[1723820968227,0.05007488,138.86,138.84,3.65067484]
[1723820968424,0.05007488,138.86,138.84,0.05007484]
[1723820968720,3.65037488,138.86,138.84,0.05007484]
[1723820969318,3.65037488,138.86,138.84,3.65077484]
[1723820969529,3.65037488,138.86,138.84,0.05007484]
[1723820970122,3.65037488,138.86,138.84,3.65077484]
[1723820970326,0.05007488,138.86,138.84,3.65077484]
[1723820971125,3.65027488,138.86,138.84,3.65077484]
[1723820971628,0.05007488,138.86,138.84,3.65077484]
[1723820971823,0.05007488,138.86,138.84,0.05007484]
[1723820972027,0.05007488,138.86,138.85,3.6004]
[1723820972235,3.599,138.91,138.84,3.70076695]
[1723820972728,3.5992,138.9,138.84,3.70076695]
[1723820972929,9.84372675,138.95,138.84,3.65069211]
[1723820973129,6.26,138.95,138.85,1.293]
[1723820973432,0.05322285,138.91,138.89,3.5993]
[1723820973764,0.05322285,138.91,138.88,0.0473718]
[1723820973765,0.05322285,138.91,138.88,3.6467718]
[1723820973925,3.65222285,138.91,138.88,3.6467718]
[1723820974320,0.05322285,138.91,138.89,3.5993]
[1723820975030,0.05322285,138.91,138.9,3.5991]
[1723820975428,0.05322285,138.91,138.88,0.0473718]
[1723820975729,0.05322285,138.91,138.89,3.5993]
[1723820976628,0.05322285,138.91,138.88,3.6469718]
[1723820976929,3.65222285,138.91,138.88,3.6469718]
[1723820979829,0.05322285,138.91,138.88,0.0473718]
[1723820980236,3.5993,138.9,138.88,0.0473718]
[1723820980627,0.05322285,138.91,138.88,3.6469718]
[1723820981133,3.65222285,138.91,138.88,3.6469718]
[1723820981527,0.05322285,138.91,138.89,3.5993]
[1723820981729,0.05322285,138.91,138.88,0.0473718]
[1723820981949,0.05322285,138.91,138.9,3.5991]
[1723820982226,0.05322285,138.91,138.88,0.0473718]
[1723820983036,0.05322285,138.91,138.89,3.5991]
[1723820983228,0.05322285,138.91,138.88,0.0473718]
[1723820983931,0.05322285,138.91,138.89,3.5994]
[1723820984332,0.05322285,138.91,138.9,3.5992]
[1723820995338,8.916,138.99,138.89,1.259]
[1723820995339,2.676,138.99,138.89,1.259]
[1723820995537,1.3297,139.0,138.89,1.259]
[1723820996533,1.3297,139.0,138.94,3.598]
[1723820996738,3.5973,138.98,138.94,3.598]
[1723820997240,1.3297,139.0,138.94,3.598]
[1723820997747,3.5974,138.97,138.94,3.598]
[1723820998338,3.5978,138.96,138.93,0.05072381]
[1723820998546,1.3297,139.0,138.93,0.05072381]
[1723820998840,7.204,138.97,138.93,0.05072381]
[1723820999038,6.24,138.98,138.93,0.05072381]
[1723820999436,3.5974,138.97,138.93,0.05072381]
[1723820999836,2.7029,139.01,138.93,0.05072381]
[1723821000548,3.5966,139.0,138.93,0.05072381]
[1723821001144,72.44805532,139.02,138.93,0.05072381]
[1723821001444,7.5046,139.07,138.93,0.05072381]
[1723821001645,3.5961,139.02,138.92,3.9511]
[1723821001843,3.5961,139.02,138.98,0.04880688]
[1723821002154,8.7841,139.07,138.98,0.04880688]
[1723821002346,2.5441,139.07,138.99,6.24]
[1723821002551,2.5441,139.07,138.92,32.7311]
[1723821002750,2.5441,139.07,138.93,6.24]
[1723821003053,2.5441,139.07,139.02,0.05063071]
[1723821003446,3.5959,139.03,138.99,3.5967]
[1723821003644,2.5441,139.07,139.03,0.04914109]
[1723821003953,3.5961,139.02,138.98,3.5971]
[1723821004141,3.5961,139.02,138.97,6.24]
[1723821004872,9.7481,139.07,138.95,6.24]
[1723821005261,3.5963,139.02,138.98,3.597]
[1723821005649,3.65123303,139.02,139.0,0.05445208]
[1723821005846,3.5963,139.01,139.0,0.05445208]
[1723821006357,0.05493303,139.02,139.0,0.05445208]
[1723821007055,3.5963,139.01,139.0,0.05445208]
[1723821008570,0.05493303,139.02,139.0,0.05445208]
[1723821009460,3.65123303,139.02,139.0,0.05445208]
[1723821009756,0.05493303,139.02,139.0,0.05445208]
[1723821010255,3.65113303,139.02,139.0,0.05445208]
[1723821010452,0.05493303,139.02,139.0,0.05445208]
[1723821010648,3.65113303,139.02,139.0,0.05445208]
[1723821011858,0.05493303,139.02,139.0,0.05445208]
[1723821012859,3.65103303,139.02,139.0,0.05445208]
[1723821013959,0.05493303,139.02,139.0,0.05445208]
[1723821014554,3.65123303,139.02,139.0,0.05445208]
[1723821014955,0.05493303,139.02,139.0,0.05445208]
[1723821015160,3.5963,139.01,139.0,0.05445208]
[1723821015752,3.65103303,139.02,139.0,0.05445208]
[1723821016064,0.05493303,139.02,139.0,0.05445208]
[1723821016800,0.05493303,139.02,139.0,3.65095208]
[1723821017059,0.05493303,139.02,139.0,0.05445208]
[1723821017767,0.05493303,139.02,139.01,3.5963]
[1723821018259,0.05493303,139.02,139.0,3.65095208]
[1723821019067,3.5963,139.01,139.0,0.05445208]
[1723821020062,0.05493303,139.02,139.0,0.05445208]
[1723821020452,3.65123303,139.02,139.0,0.05445208]
[1723821020678,0.05493303,139.02,139.0,0.05445208]
[1723821021259,0.05493303,139.02,139.0,3.65075208]
[1723821021460,0.05493303,139.02,139.0,0.05445208]
[1723821022555,3.5963,139.01,139.0,0.05445208]
[1723821022759,0.05493303,139.02,139.0,0.05445208]
[1723821023862,3.5963,139.01,139.0,0.05445208]
[1723821026371,3.5969,138.99,138.95,3.5977]
[1723821026669,3.5969,138.99,138.93,3.61880217]
[1723821026670,1.3401,139.01,138.94,3.5981]
[1723821026867,7.5601,139.01,138.94,3.5981]
[1723821027068,7.5601,139.01,138.92,10.1711]
[1723821027277,14.7641,139.01,138.92,3.5985]
[1723821027464,0.05037597,138.98,138.95,0.05242242]
[1723821027666,1.3137,139.0,138.93,3.5984]
[1723821027868,0.05184136,138.98,138.95,0.05164851]
[1723821028067,1.3137,139.0,138.86,10.0559]
[1723821028268,7.5337,139.0,138.86,10.0559]
[1723821028472,0.04912327,138.94,138.92,0.04832397]
[1723821028776,3.5972,138.98,138.92,3.605367]
[1723821029077,0.05194519,138.94,138.92,3.67408302]
[1723821029272,0.05194519,138.94,138.93,3.5984]
[1723821030573,0.05194519,138.94,138.92,0.04832397]
[1723821030874,0.05194519,138.94,138.92,3.64682397]
[1723821031268,0.05194519,138.94,138.93,3.5984]
[1723821031867,0.05194519,138.94,138.92,0.04832397]
[1723821032275,0.05194519,138.94,138.93,3.5984]
[1723821034080,0.05194519,138.94,138.92,0.04832397]
[1723821034782,0.05194519,138.94,138.92,3.64692397]
[1723821035300,0.05194519,138.94,138.92,0.04832397]
[1723821035676,3.5984,138.93,138.92,0.04832397]
[1723821036175,6.22,138.96,138.84,9.85174958]
[1723821036176,3.5993,138.9,138.84,9.85174958]
[1723821036376,3.5993,138.9,138.86,3.6]
[1723821036577,3.5993,138.9,138.84,9.85174958]
[1723821036881,3.5995,138.89,138.82,6.22]
[1723821037078,3.5995,138.89,138.86,3.6001]
[1723821037279,3.63501489,138.93,138.82,6.22]
[1723821037480,0.04712247,138.87,138.84,3.64885909]
[1723821037678,3.60910961,138.92,138.84,3.6005]
[1723821037984,0.05017319,138.87,138.84,3.64981759]
[1723821038279,0.05017319,138.87,138.84,0.04931759]
[1723821038483,3.6004,138.86,138.81,4.034]
[1723821038781,0.05117695,138.87,138.84,0.05360228]
[1723821038986,0.05117695,138.87,138.78,6.22]
[1723821039180,9.82804903,138.91,138.78,9.75605364]
[1723821039582,0.04700634,138.87,138.84,0.05450072]
[1723821039982,3.6005,138.85,138.84,0.05450072]
[1723821042586,0.04700634,138.87,138.78,51.83]
[1723821042791,6.2,138.85,138.78,51.83]
[1723821043087,3.6014,138.82,138.8,51.83]
[1723821043485,3.6009,138.84,138.8,51.83]
[1723821043694,6.2,138.88,138.83,51.83]
[1723821043881,2.6519,138.89,138.85,51.83]
[1723821044082,3.5997,138.88,138.85,51.83]
[1723821044285,0.04987241,138.87,138.86,0.05266246]
[1723821044887,1.2559,138.94,138.86,0.05266246]
[1723821045082,1.2559,138.94,138.88,51.83]
[1723821045290,4.94115487,138.94,138.88,51.83]
[1723821045988,0.05153081,138.92,138.89,0.05293733]
[1723821046384,3.5992,138.91,138.89,0.05293733]
[1723821047090,0.05153081,138.92,138.9,51.83]
[1723821047591,3.5981,138.95,138.91,3.5988]
[1723821047793,3.5981,138.95,138.93,51.83]
[1723821047981,2.5828,138.98,138.93,51.83]
[1723821048182,6.2,138.99,138.89,1.2768]
[1723821048379,6.2,138.99,138.91,51.83]
[1723821048588,7.204,138.98,138.91,51.83]
[1723821048785,7.204,138.98,138.94,0.04721144]
[1723821048786,0.05472209,138.96,138.94,0.04721144]
[1723821049385,10.8019,138.95,138.94,0.04721144]
[1723821049787,3.5998,138.88,138.84,56.782]
[1723821050386,3.6,138.87,138.84,53.1814]
[1723821050586,7.204,138.91,138.84,53.1814]
[1723821050786,0.05341278,138.89,138.86,0.04752869]
[1723821050995,7.204,138.88,138.86,0.04752869]
[1723821051491,10.8038,138.88,138.86,0.04752869]
[1723821052294,7.25741278,138.89,138.86,0.04752869]
[1723821052988,10.85701278,138.89,138.86,0.04752869]
[1723821053190,7.25741278,138.89,138.86,0.04752869]
[1723821053388,0.05341278,138.89,138.86,0.04752869]
[1723821054395,7.204,138.88,138.86,0.04752869]
[1723821054989,3.6,138.87,138.86,0.04752869]
[1723821055502,10.8038,138.88,138.86,0.04752869]
[1723821056596,3.6,138.87,138.86,0.04752869]
[1723821058699,10.8039,138.88,138.86,0.04752869]
[1723821058896,7.204,138.88,138.86,0.04752869]
[1723821059090,3.6,138.87,138.86,0.04752869]
[1723821063510,3.5999,138.88,138.86,0.04752869]
[1723821063709,10.8039,138.88,138.86,0.04752869]
[1723821064007,0.05341278,138.89,138.86,0.04752869]
[1723821064202,3.6,138.87,138.86,0.04752869]
[1723821066413,8.485,138.88,138.77,2.5333]
[1723821066606,73.2981,138.87,138.79,3.6019]
[1723821066806,6.2,138.86,138.79,3.6019]
[1723821067007,6.2,138.86,138.77,1.261]
[1723821067201,7.204,138.83,138.74,70.97]
[1723821067536,6.2,138.86,138.77,0.04783277]
[1723821067537,0.05411089,138.8,138.77,0.04783277]
[1723821067706,6.2,138.79,138.77,0.04783277]
[1723821068013,3.6023,138.78,138.72,64.77]
[1723821068312,3.6023,138.78,138.74,3.6033]
[1723821068508,3.6023,138.78,138.77,0.04786199]
[1723821069113,3.64985767,138.79,138.75,3.6029]
[1723821069311,0.04765767,138.79,138.74,64.77]
[1723821069507,0.04765767,138.79,138.76,64.81800612]
[1723821069909,0.04765767,138.79,138.77,3.6024]
[1723821070214,0.04765767,138.79,138.76,64.81800612]
[1723821070412,0.04765767,138.79,138.76,66.15870612]
[1723821070612,0.04765767,138.79,138.78,3.6023]
[1723821070921,0.04765767,138.79,138.76,1.38870612]
[1723821071104,0.04765767,138.79,138.76,4.99130612]
[1723821071412,0.04765767,138.79,138.76,66.15870612]
[1723821071830,6.2,138.84,138.78,64.77]
[1723821072012,1.0,138.85,138.8,64.77]
[1723821072218,1.0,138.85,138.83,64.77]
[1723821072409,1.3811,138.91,138.84,3.6006]
[1723821072715,1.3811,138.91,138.8,68.45531265]
[1723821072716,6.2,138.93,138.85,64.77]
[1723821073011,6.2,138.93,138.85,68.3704]
[1723821073012,17.05617329,138.93,138.85,68.3704]
[1723821073313,17.05617329,138.93,138.81,1.303]
[1723821073314,0.05058699,138.89,138.86,0.05179991]
[1723821073709,3.65018699,138.89,138.86,3.65199991]
[1723821073913,3.65018699,138.89,138.86,0.05179991]
[1723821074916,0.05058699,138.89,138.86,0.05179991]
[1723821076535,3.5998,138.88,138.86,0.05179991]
[1723821076919,3.5998,138.88,138.86,3.65199991]
[1723821077313,3.5998,138.88,138.86,0.05179991]
[1723821077911,0.05058699,138.89,138.86,0.05179991]
[1723821079117,0.05058699,138.89,138.87,3.6]
[1723821079419,0.05058699,138.89,138.86,0.05179991]
[1723821079914,0.05058699,138.89,138.87,3.5999]
[1723821080327,0.05058699,138.89,138.86,0.05179991]
[1723821080713,0.05058699,138.89,138.87,3.5998]
[1723821081411,0.05058699,138.89,138.88,3.5997]
[1723821082520,0.05058699,138.89,138.88,68.3697]
[1723821083121,6.18,138.97,138.9,3.5991]
[1723821083516,3.5986,138.93,138.9,3.5991]
[1723821084015,3.5987,138.92,138.89,3.5994]
[1723821084216,6.18,138.97,138.88,64.77]
[1723821084417,0.05409537,138.93,138.9,0.04903917]
[1723821084626,3.65279537,138.93,138.9,3.64823917]
[1723821086129,0.05409537,138.93,138.91,64.77]
[1723821086746,0.05409537,138.93,138.9,0.04903917]
[1723821087324,3.65259537,138.93,138.9,3.64803917]
[1723821087521,3.65259537,138.93,138.9,0.04903917]
[1723821087722,0.05409537,138.93,138.9,0.04903917]
[1723821087923,0.05409537,138.93,138.91,3.5988]
[1723821088624,0.05409537,138.93,138.9,0.04903917]
[1723821088824,0.05409537,138.93,138.91,64.77]
[1723821089723,0.05409537,138.93,138.92,3.5987]
[1723821090230,3.5977,138.96,138.91,66.0858]
[1723821090523,3.5977,138.96,138.93,68.3683]
[1723821090726,6.18,138.99,138.91,66.0858]
[1723821091027,64.77,138.98,138.89,1.325]
[1723821091328,0.04956741,138.96,138.94,0.05056039]
[1723821091834,3.5979,138.95,138.94,0.05056039]
[1723821092821,3.5989,138.91,138.88,3.5996]
[1723821093031,71.974,138.98,138.88,3.5996]
[1723821093232,64.77,138.98,138.88,64.77]
[1723821093729,64.77,138.98,138.88,68.3695]
[1723821093933,3.5988,138.92,138.88,68.3695]
[1723821094935,3.5988,138.92,138.89,3.5994]
[1723821095126,3.5988,138.92,138.89,3.64715762]
[1723821095342,3.5985,138.93,138.89,3.64715762]
[1723821095533,0.04907958,138.94,138.91,3.5989]
[1723821096326,0.04907958,138.94,138.9,64.77]
[1723821096650,0.04907958,138.94,138.91,3.5988]
[1723821097059,3.64727958,138.94,138.91,3.5988]
[1723821097340,3.64727958,138.94,138.92,3.5986]
[1723821097341,0.04907958,138.94,138.92,3.5986]
[1723821097643,0.04907958,138.94,138.91,64.77]
[1723821098028,0.04907958,138.94,138.93,3.5984]
[1723821101339,0.04907958,138.94,138.92,0.046674]
[1723821101843,0.04907958,138.94,138.92,3.645174]
[1723821102743,0.04907958,138.94,138.92,0.046674]
[1723821104039,0.04907958,138.94,138.92,3.645274]
[1723821104241,0.04907958,138.94,138.92,0.046674]
[1723821104635,0.04907958,138.94,138.92,3.645274]
[1723821104847,0.04907958,138.94,138.92,0.046674]
[1723821105142,0.04907958,138.94,138.92,3.645274]
[1723821106139,0.04907958,138.94,138.93,3.5984]
[1723821106364,0.04907958,138.94,138.93,68.3684]
[1723821107148,0.04907958,138.94,138.92,3.645174]
[1723821108444,3.64727958,138.94,138.92,3.645174]
[1723821108643,3.64727958,138.94,138.92,0.046674]
[1723821108945,0.04907958,138.94,138.92,0.046674]
[1723821109744,0.04907958,138.94,138.93,3.5984]
[1723821111458,0.04907958,138.94,138.92,3.645174]
[1723821111845,0.04907958,138.94,138.92,0.046674]
[1723821112947,0.04907958,138.94,138.93,3.5984]
[1723821115051,0.04907958,138.94,138.93,55.4284]
[1723821115751,7.4822,139.0,138.96,3.5975]
[1723821115955,14.6862,139.0,138.96,3.5975]
[1723821116251,3.597,138.99,138.96,3.5975]
[1723821116644,14.6862,139.0,138.95,3.5978]
[1723821116840,3.5971,138.98,138.95,3.5978]
[1723821117143,0.04936636,138.99,138.98,3.5971]
[1723821117349,10.1258,139.07,138.97,51.88418017]
[1723821117544,10.1258,139.07,138.97,51.83]
[1723821117855,3.5962,139.02,139.01,0.05455619]
[1723821118050,0.05189114,139.03,139.01,0.05455619]
[1723821118355,0.05189114,139.03,139.02,3.5961]
[1723821118645,0.05189114,139.03,139.01,51.88455619]
[1723821119039,0.05189114,139.03,139.01,55.48065619]
[1723821120348,3.64769114,139.03,139.01,51.88455619]
[1723821120951,0.05189114,139.03,139.01,51.88455619]
[1723821121347,3.64779114,139.03,139.01,51.88455619]
[1723821121852,0.05189114,139.03,139.01,51.88455619]
[1723821122256,0.05189114,139.03,139.01,55.48075619]
[1723821123055,0.05189114,139.03,139.02,3.5961]
[1723821123259,0.05189114,139.03,139.01,51.88455619]
[1723821123463,0.05189114,139.03,139.01,55.48075619]
[1723821123649,0.05189114,139.03,139.01,0.05455619]
[1723821124553,0.05189114,139.03,139.02,3.5961]
[1723821124950,6.16,139.08,139.01,51.88455619]
[1723821125157,3.65234656,139.09,139.02,51.83]
[1723821125447,1.2805,139.11,139.02,51.83]
[1723821125753,1.2805,139.11,139.03,3.5957]
[1723821125954,3.595,139.07,139.03,3.5957]
[1723821126455,3.595,139.07,139.06,0.05493781]
[1723821126873,3.595,139.07,139.03,3.5957]
[1723821127047,3.595,139.07,139.05,0.04698942]
[1723821127256,3.595,139.06,139.05,0.04698942]
[1723821129451,8.4845,139.11,139.05,0.04698942]
[1723821130560,3.595,139.07,139.05,0.04698942]
[1723821131249,1.2805,139.11,139.05,0.04698942]
[1723821131451,51.83,139.1,139.05,0.04698942]
[1723821131759,1.2805,139.11,139.0,55.4265]
[1723821131760,51.83,139.08,139.0,55.4265]
[1723821131962,55.4184349,139.08,139.0,55.4265]
[1723821132256,55.4184349,139.08,139.01,3.5963]
[1723821132453,57.97,139.07,138.97,51.83]
[1723821132645,51.83,139.05,138.97,51.83]
[1723821132849,51.83,139.05,139.01,0.05108312]
[1723821132850,1.3769,139.04,139.01,0.05108312]
[1723821133057,0.04641856,139.03,138.95,51.83]
[1723821133460,6.14,139.02,138.95,51.83]
[1723821133853,3.5971,138.98,138.95,55.4278]
[1723821134163,13.344,139.02,138.95,51.83]
[1723821134356,0.05213085,138.98,138.96,3.5975]
[1723821134549,0.05213085,138.98,138.95,51.88321492]
[1723821134954,3.5975,138.97,138.95,51.88321492]
[1723821135551,3.5976,138.96,138.95,0.05321492]
[1723821136764,3.5984,138.93,138.89,51.83]
[1723821137565,1.3324,138.97,138.89,51.83]
[1723821137760,59.034,138.95,138.84,3.9172]
[1723821137969,1.2833,138.94,138.85,51.83]
[1723821138260,9.7384,138.93,138.92,0.04704586]
[1723821138458,9.76540208,138.93,138.87,55.4299]
[1723821138867,3.5992,138.9,138.87,51.83]
[1723821140169,0.05492208,138.9,138.87,51.87776838]
[1723821140859,3.65422208,138.9,138.87,51.87776838]
[1723821141665,0.05492208,138.9,138.87,55.47766838]
[1723821141863,0.05492208,138.9,138.87,51.87776838]
[1723821142163,3.5981,138.95,138.91,3.5988]
[1723821142361,3.5981,138.95,138.91,55.4288]
[1723821142964,1.3324,138.97,138.91,51.83]
[1723821143271,0.04878672,138.95,138.93,0.05386819]
[1723821143455,3.5981,138.94,138.93,0.05386819]
[1723821144559,0.04878672,138.95,138.93,0.05386819]
[1723821145565,0.04878672,138.95,138.94,51.83]
[1723821146668,0.04878672,138.95,138.94,55.4281]
[1723821148668,59.034,139.05,138.94,55.43603152]
[1723821148669,6.14,139.03,138.94,55.43603152]
[1723821148867,1.3602,139.05,138.98,51.83]
[1723821149064,1.3602,139.05,139.0,3.5964]
[1723821149264,3.596,139.03,138.98,51.83]
[1723821149570,3.596,139.03,138.99,3.5967]
[1723821149869,0.05541494,139.02,138.99,0.0505914]
[1723821150259,0.05541494,139.02,139.01,3.5963]
[1723821155570,3.58951427,139.11,139.0,109.8]
[1723821155772,3.5945,139.08,139.04,51.83]
[1723821155974,3.5945,139.08,139.05,3.5951]
[1723821156674,3.63650593,139.08,139.05,3.6457926]
[1723821157379,0.04200593,139.08,139.06,3.5949]
[1723821157582,0.04200593,139.08,139.05,0.0506926]
[1723821157972,0.04200593,139.08,139.06,3.595]
[1723821158270,0.04200593,139.08,139.05,0.0506926]
[1723821158667,0.04200593,139.08,139.07,3.5948]
[1723821159972,0.04200593,139.08,139.07,9.7348]
[1723821160871,7.1822,139.22,139.07,6.14]
[1723821161073,3.9063,139.2,139.1,51.83]
[1723821161265,7.4977,139.2,139.15,51.83]
[1723821161470,3.59526728,139.23,139.17,3.5922]
[1723821161674,0.26410818,139.22,139.15,51.83]
[1723821161870,51.83,139.23,139.15,3.5926]
[1723821162176,51.83,139.23,139.14,51.83]
[1723821162372,3.5921,139.18,139.14,51.83]
[1723821162573,3.5921,139.18,139.17,0.04875724]
[1723821162995,51.83,139.21,139.12,55.4234]
[1723821163371,3.5924,139.17,139.16,0.04918025]
[1723821164679,57.95,139.23,139.16,0.04918025]
[1723821164872,0.26411478,139.22,139.16,0.04918025]
[1723821165377,6.12,139.23,139.16,0.04918025]
[1723821165680,6.12,139.23,139.17,3.592]
[1723821165866,6.12,139.23,139.16,0.04918025]
[1723821166071,57.95,139.23,139.16,0.04918025]
[1723821166272,3.5918,139.19,139.16,0.04918025]
[1723821166676,3.5918,139.19,139.16,3.64158025]
[1723821166872,3.5918,139.19,139.16,0.04918025]